bitfinex/quotes_BTCUSD_20250723
["timestamp","ask_amount","ask_price","bid_price","bid_amount"]
[1753308056709,0.57615232,118250.0,118240.0,0.01214736]
[1753308064668,0.60845232,118250.0,118240.0,0.01214736]
[1753308065441,0.59235232,118250.0,118240.0,0.01214736]
[1753308066536,0.60735232,118250.0,118240.0,0.01214736]
[1753308067224,0.59235232,118250.0,118240.0,0.01214736]
[1753308068105,0.336046,118250.0,118240.0,1.14580527]
[1753308068323,0.16691238,118250.0,118240.0,1.16271951]
[1753308068545,0.14269608,118250.0,118240.0,1.17117638]
[1753308068803,0.14269601,118250.0,118240.0,1.17117638]
[1753308069036,0.17536689,118260.0,118250.0,0.27720228]
[1753308069246,0.32717591,118260.0,118250.0,0.68015504]
[1753308069459,0.32717591,118260.0,118250.0,0.68316504]
[1753308069660,0.16872011,118260.0,118250.0,0.68316504]
[1753308069877,0.16026446,118260.0,118250.0,0.68316504]
[1753308070106,0.16872004,118260.0,118250.0,0.68316504]
[1753308070323,0.57817569,118260.0,118250.0,0.68316504]
[1753308070555,0.001,118260.0,118250.0,0.73316504]
[1753308070759,0.15223095,118260.0,118250.0,0.73316504]
[1753308071699,0.1352,118260.0,118250.0,0.73316504]
[1753308071925,0.1436553,118260.0,118250.0,0.73316504]
[1753308072360,0.1436553,118260.0,118250.0,0.73416504]
[1753308072572,0.15111074,118260.0,118250.0,0.73416504]
[1753308072772,0.1680219,118260.0,118250.0,0.33320228]
[1753308072990,0.2524997,118260.0,118250.0,0.33320243]
[1753308073212,0.2524997,118260.0,118250.0,0.74162134]
[1753308073432,0.26095557,118260.0,118250.0,0.74462134]
[1753308073647,0.12675557,118260.0,118250.0,0.74462134]
[1753308073854,0.26095557,118260.0,118250.0,0.74462134]
[1753308074730,0.2440439,118260.0,118250.0,0.74662134]
[1753308074937,0.23558825,118260.0,118250.0,0.74662134]
[1753308075133,0.1595666,118260.0,118250.0,0.68915292]
[1753308075595,0.1680224,118260.0,118250.0,0.68915292]
[1753308075991,0.5595666,118260.0,118250.0,0.68915292]
[1753308076205,0.5680224,118260.0,118250.0,0.68915292]
[1753308076446,0.66095557,118260.0,118250.0,0.68915292]
[1753308077349,0.6438439,118260.0,118250.0,0.68915292]
[1753308077560,0.6522997,118260.0,118250.0,0.68915292]
[1753308077769,0.5182997,118260.0,118250.0,0.68915292]
[1753308077989,0.6522997,118260.0,118250.0,0.68915292]
[1753308078202,0.66075557,118260.0,118250.0,0.68915292]
[1753308078619,0.6438439,118260.0,118250.0,0.68915292]
[1753308078829,0.5098439,118260.0,118250.0,0.68915292]
[1753308079050,0.15091095,118260.0,118250.0,0.68915292]
[1753308079274,0.0253666,118260.0,118250.0,0.68915292]
[1753308079481,0.15083095,118260.0,118250.0,0.68915292]
[1753308079690,0.54237544,118260.0,118250.0,0.68915292]
[1753308079911,0.15,118270.0,118260.0,0.27738584]
[1753308080133,0.3008293,118270.0,118260.0,0.62287018]
[1753308080348,0.55928424,118270.0,118260.0,0.62588018]
[1753308080562,0.55928417,118270.0,118260.0,0.62588018]
[1753308080774,0.53392,118270.0,118260.0,0.62588018]
[1753308080981,0.01690809,118280.0,118270.0,0.27606939]
[1753308081191,0.15924246,118280.0,118270.0,0.62456373]
[1753308081411,0.55078809,118280.0,118270.0,0.62456373]
[1753308081619,0.55924239,118280.0,118270.0,0.62456373]
[1753308081846,0.57615134,118280.0,118270.0,0.61610901]
[1753308082057,0.57615134,118280.0,118270.0,0.63301868]
[1753308082272,0.82126499,118280.0,118270.0,0.62456388]
[1753308082488,0.42126499,118280.0,118270.0,0.62456388]
[1753308082938,0.82126499,118280.0,118270.0,0.62456388]
[1753308083154,0.64372019,118280.0,118270.0,0.62456388]
[1753308083362,0.55070845,118280.0,118270.0,0.6330186]
[1753308083575,0.73670769,118280.0,118270.0,0.62456388]
[1753308084046,0.71979924,118280.0,118270.0,0.43009433]
[1753308084469,0.71979924,118280.0,118270.0,0.43109433]
[1753308084901,0.79081325,118280.0,118270.0,0.43209433]
[1753308089683,0.81024227,118280.0,118270.0,0.002]
[1753308090087,0.81172227,118280.0,118270.0,0.002]
[1753308090807,0.81172227,118280.0,118270.0,0.34549434]
[1753308091239,0.81024227,118280.0,118270.0,0.002]
[1753308091451,0.81024227,118280.0,118270.0,0.34549434]
[1753308096489,0.81024227,118280.0,118270.0,0.002]
[1753308096661,0.81024227,118280.0,118270.0,0.34549434]
[1753308096905,0.81024227,118280.0,118270.0,0.002]
[1753308100111,0.73922826,118280.0,118270.0,0.002]
[1753308100326,0.73922826,118280.0,118270.0,0.34549434]
[1753308101474,0.75660826,118280.0,118270.0,0.002]
[1753308101678,0.77160826,118280.0,118270.0,0.002]
[1753308102972,0.77160826,118280.0,118270.0,0.001]
[1753308103186,1.19608556,118280.0,118270.0,0.001]
[1753308103400,0.34500869,118270.0,118260.0,0.34409434]
[1753308103621,0.48030869,118270.0,118260.0,0.34409434]
[1753308103846,0.88030869,118270.0,118260.0,0.0006]
[1753308104067,0.88030869,118270.0,118260.0,0.34409434]
[1753308104282,0.96478599,118270.0,118260.0,0.34409434]
[1753308104518,0.96626599,118270.0,118260.0,0.0006]
[1753308104954,1.51493763,118270.0,118260.0,0.0006]
[1753308105368,1.17144329,118270.0,118260.0,0.0006]
[1753308106481,1.17244329,118270.0,118260.0,0.0006]
[1753308107082,1.17344329,118270.0,118260.0,0.0006]
[1753308111340,1.15774329,118270.0,118260.0,0.0006]
[1753308112895,1.17344329,118270.0,118260.0,0.0006]
[1753308113519,1.15774329,118270.0,118260.0,0.0006]
[1753308113944,1.17344329,118270.0,118260.0,0.0006]
[1753308115057,1.15774329,118270.0,118260.0,0.0006]
[1753308117726,1.66773763,118270.0,118260.0,1e-08]
[1753308119374,1.66673763,118270.0,118260.0,1e-08]
[1753308119808,1.66773763,118270.0,118260.0,1e-08]
[1753308120014,1.66673763,118270.0,118260.0,1e-08]
[1753308120226,1.66873763,118270.0,118260.0,1e-08]
[1753308122834,1.69415763,118270.0,118260.0,1e-08]
[1753308124134,1.35066329,118270.0,118260.0,1e-08]
[1753308124351,1.69415763,118270.0,118260.0,1e-08]
[1753308126223,1.35066329,118270.0,118260.0,1e-08]
[1753308126425,1.69415763,118270.0,118260.0,1e-08]
[1753308129532,1.35066329,118270.0,118260.0,1e-08]
[1753308129740,1.69415763,118270.0,118260.0,1e-08]
[1753308129953,1.35066329,118270.0,118260.0,1e-08]
[1753308130134,1.69415763,118270.0,118260.0,1e-08]
[1753308134166,1.67765763,118270.0,118260.0,1e-08]
[1753308134406,0.19502371,118260.0,118250.0,1e-08]
[1753308134646,0.85751265,118260.0,118250.0,1e-08]
[1753308134885,0.85899265,118260.0,118250.0,1e-08]
[1753308135106,0.88441465,118260.0,118250.0,1e-08]
[1753308136467,0.88641465,118260.0,118250.0,1e-08]
[1753308139853,0.88493465,118260.0,118250.0,1e-08]
[1753308140069,0.72948031,118260.0,118250.0,1e-08]
[1753308142448,0.56921831,118260.0,118250.0,0.03394001]
[1753308142656,0.70209831,118260.0,118250.0,0.03705001]
[1753308144402,0.70405831,118260.0,118250.0,0.03705001]
[1753308146255,0.70209831,118260.0,118250.0,0.03705001]
[1753308146935,0.70405831,118260.0,118250.0,0.03705001]
[1753308149759,0.70405831,118260.0,118250.0,0.02135001]
[1753308150346,0.70405831,118260.0,118250.0,0.01921001]
[1753308150575,0.70405831,118260.0,118250.0,1e-08]
[1753308151026,0.70405831,118260.0,118250.0,0.00311001]
[1753308151247,0.70405831,118260.0,118250.0,1e-08]
[1753308151452,1.04755265,118260.0,118250.0,1e-08]
[1753308152389,0.70405831,118260.0,118250.0,1e-08]
[1753308153083,0.72947831,118260.0,118250.0,1e-08]
[1753308153312,0.72899831,118260.0,118250.0,1e-08]
[1753308154443,0.72899831,118260.0,118250.0,0.00301001]
[1753308154900,0.72899831,118260.0,118250.0,1e-08]
[1753308155577,0.81760472,118240.0,118230.0,0.03391]
[1753308155792,1.47025511,118240.0,118230.0,0.00014748]
[1753308156021,1.12676077,118240.0,118230.0,0.00014748]
[1753308157297,1.12776077,118240.0,118230.0,0.00315748]
[1753308157733,1.12876077,118240.0,118230.0,0.00315748]
[1753308157956,1.12876077,118240.0,118230.0,0.00014748]
[1753308159065,1.12876077,118240.0,118230.0,0.00315748]
[1753308159533,1.12876077,118240.0,118230.0,0.01885748]
[1753308161002,1.12876077,118240.0,118230.0,0.02084748]
[1753308162824,1.12876077,118240.0,118230.0,0.01885748]
[1753308164334,1.50355511,118240.0,118230.0,0.00014748]
[1753308164549,1.51503911,118240.0,118230.0,0.00014748]
[1753308164985,1.17008477,118240.0,118230.0,0.00014748]
[1753308165201,1.49767911,118240.0,118230.0,0.00014748]
[1753308165422,1.15418477,118240.0,118230.0,0.00014748]
[1753308167041,1.15418477,118240.0,118230.0,0.00315748]
[1753308167290,1.15418477,118240.0,118230.0,0.00014748]
[1753308172692,1.16948477,118240.0,118230.0,0.00014748]
[1753308174370,1.15418477,118240.0,118230.0,0.00014748]
[1753308177587,1.49767911,118240.0,118230.0,0.00014748]
[1753308177809,1.52932911,118240.0,118230.0,1e-08]
[1753308178445,1.52787911,118240.0,118230.0,1e-08]
[1753308180500,1.15418477,118240.0,118230.0,0.00301001]
[1753308181046,1.15418477,118240.0,118230.0,1e-08]
[1753308181323,1.49767911,118240.0,118230.0,1e-08]
[1753308181801,1.15418477,118240.0,118230.0,1e-08]
[1753308182034,0.60695504,118240.0,118230.0,0.36871594]
[1753308182251,0.48806188,118240.0,118230.0,0.37070594]
[1753308182514,0.48806188,118240.0,118230.0,0.64832574]
[1753308182515,0.47150188,118240.0,118230.0,0.64832574]
[1753308182761,0.46304472,118240.0,118230.0,0.0272116]
[1753308183007,0.39182251,118240.0,118230.0,0.37070594]
[1753308183232,0.54183153,118240.0,118230.0,0.37070594]
[1753308183451,0.88183153,118240.0,118230.0,0.0272116]
[1753308183673,1.11830883,118240.0,118230.0,0.0272116]
[1753308183895,1.11830883,118240.0,118230.0,0.0292116]
[1753308184561,1.11830883,118240.0,118230.0,0.0272116]
[1753308184784,1.11830883,118240.0,118230.0,0.0282116]
[1753308185009,1.11630883,118240.0,118230.0,0.0282116]
[1753308185245,1.05309104,118240.0,118230.0,0.0282116]
[1753308185937,1.05309104,118240.0,118230.0,0.0292116]
[1753308186826,1.05509104,118240.0,118230.0,0.006]
[1753308187033,1.20509104,118240.0,118230.0,0.00299]
[1753308187250,1.28956834,118240.0,118230.0,0.00299]
[1753308187466,1.28956834,118240.0,118230.0,0.01299]
[1753308187887,1.28956834,118240.0,118230.0,0.01616]
[1753308189579,1.15600834,118240.0,118230.0,0.01616]
[1753308189801,0.77897374,118240.0,118230.0,0.45968188]
[1753308190017,0.77897374,118240.0,118230.0,0.63730177]
[1753308190018,0.30929154,118240.0,118230.0,0.63730177]
[1753308190240,0.46998216,118240.0,118230.0,0.45968188]
[1753308190467,0.48743118,118240.0,118230.0,0.45968188]
[1753308190689,0.91190848,118240.0,118230.0,0.04856]
[1753308190912,0.91190848,118240.0,118230.0,0.01616]
[1753308190913,1.14838578,118240.0,118230.0,0.01616]
[1753308191154,1.01246578,118240.0,118230.0,0.39205434]
[1753308191376,1.01246578,118240.0,118230.0,0.62813194]
[1753308191377,0.33606216,118240.0,118230.0,0.62813194]
[1753308191602,0.47042216,118240.0,118230.0,0.61121613]
[1753308191803,0.47042216,118240.0,118230.0,0.39205434]
[1753308193328,0.69351118,118240.0,118230.0,0.04856]
[1753308193548,1.01446578,118240.0,118230.0,0.01616]
[1753308193796,1.01246578,118240.0,118230.0,0.39175434]
[1753308194013,0.69351118,118240.0,118230.0,0.39175434]
[1753308194239,0.35351118,118240.0,118230.0,0.39175434]
[1753308194460,0.35351118,118240.0,118230.0,0.04826]
[1753308194461,0.48811118,118240.0,118230.0,0.04826]
[1753308194685,0.48811118,118240.0,118230.0,0.39175434]
[1753308194907,0.48811118,118240.0,118230.0,0.04826]
[1753308195120,0.57258848,118240.0,118230.0,0.39175434]
[1753308195339,0.80906578,118240.0,118230.0,0.01299]
[1753308196032,0.80906578,118240.0,118230.0,0.01616]
[1753308196535,0.80706578,118240.0,118230.0,0.03236]
[1753308197959,0.80906578,118240.0,118230.0,0.01299]
[1753308198446,0.80906578,118240.0,118230.0,0.011]
[1753308199344,1.18352578,118240.0,118230.0,0.011]
[1753308199783,1.15212578,118240.0,118230.0,0.011]
[1753308199999,1.14906578,118240.0,118230.0,0.011]
[1753308200252,1.14906578,118240.0,118230.0,0.01]
[1753308200495,1.18552578,118240.0,118230.0,0.01]
[1753308200715,1.52902012,118240.0,118230.0,0.01]
[1753308200979,1.18552578,118240.0,118230.0,0.01]
[1753308201234,1.89794046,118240.0,118230.0,1e-08]
[1753308201513,1.58075279,118240.0,118230.0,1e-08]
[1753308202037,1.55444612,118240.0,118230.0,1e-08]
[1753308202576,1.55344612,118240.0,118230.0,1e-08]
[1753308203011,1.55644612,118240.0,118230.0,1e-08]
[1753308203280,2.04894046,118240.0,118230.0,1e-08]
[1753308203545,2.05194046,118240.0,118230.0,1e-08]
[1753308204031,1.70844612,118240.0,118230.0,1e-08]
[1753308205885,2.05194046,118240.0,118230.0,1e-08]
[1753308209677,7.10194046,118240.0,118230.0,1e-08]
[1753308209903,7.12824713,118240.0,118230.0,1e-08]
[1753308211684,7.12824713,118240.0,118190.0,0.03527]
[1753308211685,0.98511384,118200.0,118190.0,0.03527]
[1753308211867,1.28918844,118200.0,118190.0,0.03751442]
[1753308212524,1.30012777,118200.0,118190.0,0.03751442]
[1753308212732,1.30012777,118200.0,118190.0,0.03434442]
[1753308213017,1.30012777,118200.0,118190.0,0.00052442]
[1753308213234,1.64362211,118200.0,118190.0,1e-08]
[1753308213456,1.67822211,118200.0,118190.0,1e-08]
[1753308213685,1.70365711,118200.0,118190.0,1e-08]
[1753308214132,1.38646944,118200.0,118190.0,1e-08]
[1753308214357,1.72996378,118200.0,118190.0,1e-08]
[1753308215423,2.40365711,118200.0,118190.0,1e-08]
[1753308215623,2.42896335,118200.0,118190.0,1e-08]
[1753308215834,2.63224335,118200.0,118190.0,1e-08]
[1753308216060,0.19512887,118190.0,118180.0,0.06802754]
[1753308216257,0.4891659,118190.0,118180.0,0.06811071]
[1753308216680,0.86726024,118190.0,118180.0,1e-08]
[1753308216897,1.20726024,118190.0,118180.0,1e-08]
[1753308217117,1.23356691,118190.0,118180.0,1e-08]
[1753308217334,6.28356691,118190.0,118180.0,1e-08]
[1753308217556,5.9137659,118190.0,118180.0,1e-08]
[1753308218280,5.9157659,118190.0,118180.0,1e-08]
[1753308218503,0.68582097,118170.0,118160.0,1e-08]
[1753308218780,0.68582097,118170.0,118150.0,1e-08]
[1753308218781,0.22737398,118160.0,118150.0,1e-08]
[1753308219032,0.22737398,118160.0,118150.0,0.00049239]
[1753308219033,0.45247128,118160.0,118150.0,0.00049239]
[1753308219243,0.41707128,118160.0,118150.0,0.00049239]
[1753308219458,0.44251428,118160.0,118150.0,0.00049239]
[1753308219692,0.90588592,118160.0,118150.0,1e-08]
[1753308219924,0.98518903,118150.0,118140.0,0.0004]
[1753308220143,1.20720633,118150.0,118140.0,0.00044916]
[1753308221263,1.20720633,118150.0,118140.0,0.00344916]
[1753308221494,1.20522633,118150.0,118140.0,0.04145916]
[1753308221738,1.28970363,118150.0,118140.0,0.04145916]
[1753308221967,1.28970363,118150.0,118140.0,0.00855916]
[1753308222440,1.29170363,118150.0,118140.0,0.00855916]
[1753308223362,1.14170363,118150.0,118140.0,0.02355916]
[1753308223594,1.14170363,118150.0,118140.0,0.01855916]
[1753308224668,1.49045797,118150.0,118140.0,0.01344916]
[1753308224887,1.14696363,118150.0,118140.0,0.01344916]
[1753308225745,1.16256363,118150.0,118140.0,0.01344916]
[1753308226432,1.52115797,118150.0,118140.0,0.01344916]
[1753308226884,1.00614363,118150.0,118140.0,0.01855916]
[1753308227107,1.16730963,118150.0,118140.0,0.04985916]
[1753308227333,1.16936963,118150.0,118140.0,0.01344916]
[1753308229862,1.08303233,118150.0,118140.0,0.04925916]
[1753308231904,0.79711233,118150.0,118140.0,0.04925916]
[1753308232167,0.79711233,118150.0,118140.0,0.3927535]
[1753308232168,1.08307233,118150.0,118140.0,0.3927535]
[1753308232644,1.05762633,118150.0,118140.0,0.3927535]
[1753308232866,1.05762633,118150.0,118140.0,0.04925916]
[1753308233112,1.14210363,118150.0,118140.0,0.04925916]
[1753308236088,1.00614363,118150.0,118140.0,0.3927535]
[1753308236314,0.32974001,118150.0,118140.0,0.3927535]
[1753308236537,0.47416361,118150.0,118140.0,0.3927535]
[1753308236982,0.49161263,118150.0,118140.0,0.3927535]
[1753308238221,0.49165263,118150.0,118140.0,0.3927535]
[1753308239666,0.35565263,118150.0,118140.0,0.3927535]
[1753308239881,0.55906409,118150.0,118140.0,0.04925916]
[1753308240087,0.55906409,118150.0,118140.0,0.3927535]
[1753308241538,0.42314409,118150.0,118140.0,0.3927535]
[1753308241760,0.55906409,118150.0,118140.0,0.3927535]
[1753308241965,0.16915924,118150.0,118140.0,0.57050863]
[1753308242176,0.31339015,118150.0,118140.0,0.68743703]
[1753308242396,0.32185382,118150.0,118140.0,0.69590113]
[1753308242607,0.32185382,118150.0,118140.0,0.70436516]
[1753308242818,0.32185382,118150.0,118140.0,0.69590113]
[1753308242819,0.33031763,118150.0,118140.0,0.69590113]
[1753308243017,0.33031756,118150.0,118140.0,0.68743703]
[1753308243243,0.32185439,118150.0,118140.0,0.68743703]
[1753308243452,0.002,118150.0,118140.0,1.1238727]
[1753308243749,0.138,118150.0,118140.0,0.43688402]
[1753308243964,0.138,118150.0,118140.0,0.78037836]
[1753308244158,0.14446324,118150.0,118140.0,0.77737836]
[1753308244367,0.136,118150.0,118140.0,0.77737836]
[1753308244568,0.136,118150.0,118140.0,0.78037836]
[1753308245028,0.14446317,118150.0,118140.0,0.78237836]
[1753308245239,0.136,118150.0,118140.0,0.78237836]
[1753308245441,0.14446317,118150.0,118140.0,0.78237836]
[1753308245632,0.136,118150.0,118140.0,0.78237836]
[1753308246272,0.14446317,118150.0,118140.0,0.78237836]
[1753308246456,0.136,118150.0,118140.0,0.77937836]
[1753308246722,0.136,118150.0,118140.0,0.78237836]
[1753308247399,0.14446317,118150.0,118140.0,0.78237836]
[1753308247836,0.136,118150.0,118140.0,0.78237836]
[1753308248053,0.136,118150.0,118140.0,1.1258727]
[1753308248498,0.01692526,118160.0,118150.0,0.19466692]
[1753308248499,0.03385109,118160.0,118150.0,0.19466692]
[1753308248760,0.18818013,118160.0,118150.0,0.9653056]
[1753308248992,0.32771,118170.0,118160.0,0.32585042]
[1753308248993,0.15,118170.0,118160.0,0.32585042]
[1753308249212,0.3028439,118170.0,118160.0,1.0149891]
[1753308249440,0.13592,118170.0,118160.0,1.0181691]
[1753308249661,0.53592,118170.0,118160.0,1.1026464]
[1753308250105,0.56130578,118170.0,118160.0,1.1026464]
[1753308250351,0.55284369,118170.0,118160.0,1.1026464]
[1753308250571,0.55284362,118170.0,118160.0,1.1036464]
[1753308250785,0.54438174,118170.0,118160.0,1.1036464]
[1753308251004,0.55284355,118170.0,118160.0,1.1026464]
[1753308251227,0.5613055,118170.0,118160.0,1.1026464]
[1753308251515,0.55284355,118170.0,118160.0,1.1026464]
[1753308251738,0.5613055,118170.0,118160.0,1.1026464]
[1753308251923,0.58022968,118170.0,118160.0,1.1026464]
[1753308252176,0.43584752,118170.0,118160.0,1.1026464]
[1753308252393,0.56980752,118170.0,118160.0,1.1026464]
[1753308252802,0.5613455,118170.0,118160.0,1.1036464]
[1753308253066,0.55288355,118170.0,118160.0,1.1036464]
[1753308253290,0.56134557,118170.0,118160.0,1.1036464]
[1753308253519,0.55288355,118170.0,118160.0,1.1036464]
[1753308253771,0.56980759,118170.0,118160.0,1.1036464]
[1753308254208,0.5613455,118170.0,118160.0,1.1036464]
[1753308254644,0.54442174,118170.0,118160.0,1.1036464]
[1753308254880,0.00846038,118190.0,118180.0,0.10846137]
[1753308255119,0.1528809,118190.0,118180.0,0.64236456]
[1753308255340,0.53604,118190.0,118180.0,0.64342915]
[1753308255558,0.53604,118190.0,118180.0,0.67392915]
[1753308256010,0.53604,118190.0,118180.0,1.10190079]
[1753308256240,0.53853104,118190.0,118180.0,1.10190079]
[1753308256882,0.53853104,118190.0,118180.0,0.75840645]
[1753308262248,0.40249104,118190.0,118180.0,0.75840645]
[1753308262446,0.53829104,118190.0,118180.0,0.75840645]
[1753308265792,0.40249104,118190.0,118180.0,0.75840645]
[1753308266018,0.13821104,118190.0,118180.0,1.44190079]
[1753308267204,0.13821104,118190.0,118180.0,1.44390079]
[1753308267696,0.13621104,118190.0,118180.0,1.44390079]
[1753308267936,0.13637104,118190.0,118180.0,1.58078079]
[1753308269189,0.13641104,118190.0,118180.0,1.58078079]
[1753308269865,1e-08,118190.0,118180.0,1.58078079]
[1753308270763,1e-08,118190.0,118180.0,1.57978079]
[1753308270984,1e-08,118190.0,118180.0,1.58478079]
[1753308271196,1e-08,118190.0,118180.0,1.58278079]
[1753308271417,1e-08,118190.0,118180.0,1.88138079]
[1753308271651,1e-08,118190.0,118180.0,1.88538079]
[1753308273481,0.13100001,118210.0,118200.0,0.96197325]
[1753308273695,0.13100001,118210.0,118200.0,1.04649971]
[1753308273906,0.4,118220.0,118210.0,0.6149681]
[1753308274126,0.53608,118220.0,118210.0,1.04293974]
[1753308274397,0.53608,118220.0,118210.0,1.09293974]
[1753308275510,0.54453816,118220.0,118210.0,1.09393974]
[1753308275717,0.40845816,118220.0,118210.0,1.09393974]
[1753308275939,0.54461816,118220.0,118210.0,1.09393974]
[1753308276352,0.53616,118220.0,118210.0,1.11887743]
[1753308277357,0.53624,118220.0,118210.0,1.11887743]
[1753308278568,0.5362,118220.0,118210.0,1.11887743]
[1753308278820,0.5362,118220.0,118210.0,1.12093743]
[1753308279047,0.5362,118220.0,118210.0,1.12391743]
[1753308280474,0.54465816,118220.0,118210.0,1.12391743]
[1753308280756,0.1362,118220.0,118210.0,1.12391743]
[1753308280971,0.14465816,118220.0,118210.0,1.12391743]
[1753308281201,0.14465816,118220.0,118210.0,0.78042309]
[1753308281409,0.14465816,118220.0,118210.0,1.12391743]
[1753308281595,0.13608,118220.0,118210.0,1.12391743]
[1753308282049,0.1466683,118220.0,118210.0,1.12093743]
[1753308282268,0.13821,118220.0,118210.0,0.77744309]
[1753308282525,0.13821,118220.0,118210.0,1.12093743]
[1753308282731,0.13608,118220.0,118210.0,1.12391743]
[1753308285211,0.43383077,118230.0,118220.0,0.26015165]
[1753308285455,0.5550851,118230.0,118220.0,0.62458599]
[1753308285666,0.57200084,118230.0,118220.0,0.62458599]
[1753308285903,0.5635429,118230.0,118220.0,0.62458599]
[1753308286649,0.5560851,118230.0,118220.0,0.62458599]
[1753308286881,0.5645429,118230.0,118220.0,0.62458599]
[1753308287121,0.4285029,118230.0,118220.0,0.62458599]
[1753308287339,0.137,118230.0,118220.0,1.10255762]
[1753308287571,0.137,118230.0,118220.0,1.57851762]
[1753308289252,0.136,118230.0,118220.0,1.57851762]
[1753308289658,0.136,118230.0,118220.0,1.57951762]
[1753308290411,0.00865472,118270.0,118260.0,0.31028584]
[1753308290634,0.00865472,118270.0,118260.0,0.70554639]
[1753308290635,0.3413342,118270.0,118260.0,0.70554639]
[1753308290860,0.18068476,118270.0,118260.0,0.71400212]
[1753308291078,0.34133463,118270.0,118260.0,0.7224577]
[1753308291293,0.03615004,118270.0,118260.0,0.7224577]
[1753308291506,0.34978985,118270.0,118260.0,0.73091321]
[1753308291713,0.34993724,118270.0,118260.0,0.73091321]
[1753308291932,0.34148244,118270.0,118260.0,0.37050785]
[1753308292156,0.33302743,118270.0,118260.0,0.71400219]
[1753308292371,0.34165622,118270.0,118260.0,0.71400219]
[1753308292580,0.33625114,118270.0,118260.0,0.39349434]
[1753308292803,0.57757483,118260.0,118250.0,0.09999999]
[1753308292983,0.57970483,118260.0,118250.0,0.09999999]
[1753308293220,0.58275483,118260.0,118250.0,0.09999999]
[1753308293617,0.73275483,118260.0,118250.0,0.09999999]
[1753308294056,0.73275483,118260.0,118250.0,0.44349433]
[1753308294261,0.74221056,118260.0,118250.0,0.44349433]
[1753308294470,0.74221056,118260.0,118250.0,0.63799726]
[1753308294713,0.74221056,118260.0,118250.0,0.6464537]
[1753308294922,0.74221056,118260.0,118250.0,0.62954075]
[1753308295695,0.73375483,118260.0,118250.0,0.62954075]
[1753308296443,0.73375483,118260.0,118250.0,0.63799726]
[1753308296669,0.73375483,118260.0,118250.0,0.44349433]
[1753308296888,0.73375483,118260.0,118250.0,0.62108417]
[1753308297990,0.73375483,118260.0,118250.0,0.62954075]
[1753308298204,0.73375483,118260.0,118250.0,0.63799726]
[1753308299324,0.73070483,118260.0,118250.0,0.63799726]
[1753308300175,0.73375483,118260.0,118250.0,0.63799726]
[1753308300405,0.73375483,118260.0,118250.0,0.44349433]
[1753308300628,0.76535483,118260.0,118250.0,0.05]
[1753308300838,0.20256202,118240.0,118230.0,0.39349433]
[1753308301058,0.32712202,118240.0,118230.0,0.39349433]
[1753308301312,0.32712202,118240.0,118230.0,0.04999999]
[1753308301313,0.49362202,118240.0,118230.0,0.04999999]
[1753308301545,0.50136486,118240.0,118230.0,0.44349433]
[1753308301814,0.46866486,118240.0,118230.0,0.61265613]
[1753308302025,0.46561486,118240.0,118230.0,0.62111407]
[1753308302467,0.46561486,118240.0,118230.0,0.28607753]
[1753308302668,0.46561486,118240.0,118230.0,0.62111407]
[1753308303180,0.46561486,118240.0,118230.0,0.62957187]
[1753308303372,0.46561486,118240.0,118230.0,0.6380296]
[1753308303934,0.46561486,118240.0,118230.0,0.6401396]
[1753308304131,0.46561486,118240.0,118230.0,0.63168187]
[1753308304345,0.31125133,118240.0,118230.0,0.65875945]
[1753308304555,0.40845608,118250.0,118240.0,0.32541873]
[1753308304766,0.55291238,118250.0,118240.0,1.01451741]
[1753308304982,0.73895852,118250.0,118240.0,1.00082346]
[1753308305242,0.73050244,118250.0,118240.0,1.01773785]
[1753308305477,0.73050244,118250.0,118240.0,1.02619493]
[1753308305675,0.73050244,118250.0,118240.0,1.03465194]
[1753308305880,0.73150244,118250.0,118240.0,1.03465194]
[1753308306107,0.73150244,118250.0,118240.0,1.03465158]
[1753308306323,0.56236925,118250.0,118240.0,1.03465122]
[1753308307139,0.73995909,118250.0,118240.0,1.03465122]
[1753308307349,0.001,118250.0,118240.0,1.11912852]
[1753308307552,0.137,118250.0,118240.0,1.11912852]
[1753308307985,0.13704,118250.0,118240.0,1.11912852]
[1753308308873,0.13604,118250.0,118240.0,1.11912852]
[1753308310219,0.13604,118250.0,118240.0,1.12012852]
[1753308310850,0.13804,118250.0,118240.0,1.12012852]
[1753308311278,0.13604,118250.0,118240.0,1.12012852]
[1753308311723,0.13604,118250.0,118240.0,1.12112852]
[1753308312146,0.14449615,118250.0,118240.0,1.12112852]
[1753308312376,0.14449615,118250.0,118240.0,0.52997163]
[1753308312377,0.33271244,118250.0,118240.0,0.52997163]
[1753308312591,0.31579977,118250.0,118240.0,0.39549434]
[1753308312825,0.34916977,118250.0,118240.0,0.39549434]
[1753308313042,0.76661879,118250.0,118240.0,0.002]
[1753308313255,0.91661879,118250.0,118240.0,0.002]
[1753308313465,0.91661879,118250.0,118240.0,0.001]
[1753308313678,0.18607747,118230.0,118220.0,0.39349433]
[1753308313889,0.32436747,118230.0,118220.0,0.39349433]
[1753308314108,0.32436747,118230.0,118220.0,0.44349433]
[1753308314765,0.32436747,118230.0,118220.0,0.62958797]
[1753308315186,0.32436747,118230.0,118220.0,0.62174246]
[1753308315659,0.3074518,118230.0,118220.0,0.43564882]
[1753308316285,0.3074518,118230.0,118220.0,0.10845879]
[1753308316534,0.3074518,118230.0,118220.0,0.43564882]
[1753308316968,0.3074518,118230.0,118220.0,0.43764882]
[1753308317417,0.3074518,118230.0,118220.0,0.60682493]
[1753308317641,0.3074518,118230.0,118220.0,0.61528373]
[1753308317862,0.3074518,118230.0,118220.0,0.63220098]
[1753308318781,0.3074518,118230.0,118220.0,0.62374239]
[1753308319448,0.3074518,118230.0,118220.0,0.61739373]
[1753308320315,0.3074518,118230.0,118220.0,0.44821762]
[1753308320549,0.3074518,118230.0,118220.0,0.61739373]
[1753308320805,0.3074518,118230.0,118220.0,0.43764882]
[1753308322637,0.3074518,118230.0,118220.0,0.61528373]
[1753308323287,0.3074518,118230.0,118220.0,0.62374246]
[1753308323951,0.31590974,118230.0,118220.0,0.62374246]
[1753308324155,0.31590974,118230.0,118220.0,0.28809363]
[1753308324367,0.31590974,118230.0,118220.0,0.62374246]
[1753308324604,0.15520567,118230.0,118220.0,0.63220105]
[1753308324809,0.16366368,118230.0,118220.0,0.6322009]
[1753308325015,0.33282548,118230.0,118220.0,0.62374246]
[1753308325882,0.33282548,118230.0,118220.0,0.63220112]
[1753308326550,0.33282548,118230.0,118220.0,0.61528373]
[1753308326765,0.32436775,118230.0,118220.0,0.60682493]
[1753308326980,0.32436775,118230.0,118220.0,0.61528373]
[1753308327572,0.32436775,118230.0,118220.0,0.60682493]
[1753308328024,0.32436775,118230.0,118220.0,0.55682494]
[1753308328924,0.32436775,118230.0,118220.0,0.61528373]
[1753308329141,0.31590981,118230.0,118220.0,0.60682493]
[1753308329569,0.31590981,118230.0,118220.0,0.55682494]
[1753308330083,0.3419218,118230.0,118220.0,0.052]